Cogmind - Beta 16 @@@ ROGUE MODE // 2026.01.11 @ 14:03:31 Player: arsenico Result: Destroyed by H-55 Commando with Gauss Rifle Performance ------------- Evolutions (2) 1000 Regions Visited (6) 1200 Robots Destroyed (104) 520 Value Destroyed (3035) 3035 Prototype IDs (1) 20 Alien Tech Used (0) 0 Bonus (869) 869 TOTAL SCORE: 6644 Bonus ------- High Alert Combat Kills 98 Follower Combat Kills 71 Entered Garrisons 200 Used RIF Installer 500 Cogmind --------- Core Integrity 0/550 Matter 261/300 Energy 80/100 System Corruption 13% Temperature Cool (0) Movement Flying (275) Ox3 Location -8/Materials Parts ------- > --- POWER (1) -------- (None) > --- PROPULSION (3) --- Aerolev Unit Cesium-ion Thruster > --- UTILITY (5) ------ Medium Storage Unit Hacking Suite Relay Coupler [NC] (25) Relay Coupler [Sentry] (23) > --- WEAPON (2) ------- Missile Launcher Heavy Mace > --- INVENTORY (10) --- Light Treads Advanced Treads ECM Suite Hardened Light Armor Plating Hacking Suite Assault Cannon Flak Cannon Remote Datajack Peak State ------------ > --- POWER ------------ Light Nuclear Core > --- PROPULSION ------- Aerolev Unit Aerolev Unit Aerolev Unit > --- UTILITY ---------- Medium Storage Unit Hacking Suite Hacking Suite Relay Coupler [NC] Relay Coupler [Sentry] > --- WEAPON ----------- Missile Launcher Heavy Mace > --- INVENTORY -------- Light Treads Advanced Treads Cesium-ion Thruster ECM Suite Hardened Light Armor Plating Hacking Suite Assault Cannon Flak Cannon Remote Datajack [Rating: 35] Favorites ----------- Power Light Nuclear Core Engine Ion Engine Power Core Light Nuclear Core Propulsion Light Treads Treads Light Treads Leg Aluminum Leg Hover Unit Aerolev Unit Flight Unit Flight Unit Utility Large Storage Unit Device Shield Generator Storage Large Storage Unit Processor Targeting Computer Hackware Hacking Suite Protection Light Armor Plating Weapon Assault Rifle Energy Gun Arc Projector Ballistic Gun Assault Rifle Ballistic Cannon Assault Cannon Launcher Grenade Launcher Impact Weapon Heavy Hammer Special Melee Weapon Datajack Build | -11 -10 -9 -9 -8 -8 -8 ------- Run | Yrd Mat Mat Min Mat Gar Mat Slots Evolved 4 | . . 2 . 2 . . Power . | . . . . . . . Propulsion 1 | . . 1 . . . . Utility 3 | . . 1 . 2 . . Weapon . | . . . . . . . Parts Attached 75 | 6 4 19 4 8 15 19 Power 5 | 1 . 1 . 2 1 . Engine 2 | 1 . . . . 1 . Core 3 | . . 1 . 2 . . Reactor . | . . . . . . . Propulsion 29 | 2 1 8 . 2 7 9 Treads 18 | 2 1 8 . 2 3 2 Leg 1 | . . . . . . 1 Wheel . | . . . . . . . Hover 7 | . . . . . 4 3 Flight 3 | . . . . . . 3 Utility 23 | 1 2 6 1 2 3 8 Device 8 | . 1 3 . 2 1 1 Storage 5 | 1 1 1 . . 1 1 Processor 1 | . . 1 . . . . Hackware 5 | . . . 1 . . 4 Protection 4 | . . 1 . . 1 2 Artifact . | . . . . . . . Weapon 18 | 2 1 4 3 2 4 2 Energy Gun 2 | . . . . . 2 . Energy Cannon . | . . . . . . . Ballistic Gun 7 | 2 1 3 . 1 . . Ballistic Cannon 1 | . . . . 1 . . Launcher 4 | . . . 2 . 1 1 Special Weapon . | . . . . . . . Impact Weapon 3 | . . 1 . . 1 1 Slashing Weapon . | . . . . . . . Piercing Weapon . | . . . . . . . Special Melee Weapon 1 | . . . 1 . . . Unidentified Prototypes 1 | . . . . . . 1 Corrupted Parts 1 | . . . . . . 1 System Corruption 13 | . . . . . . 13 Parts Lost 35 | . 1 9 1 2 14 8 Power 4 | . . 1 . 1 . 2 Propulsion 16 | . 1 5 . . 7 3 Utility 8 | . . 2 1 1 2 2 Weapon 7 | . . 1 . . 5 1 Highest Loss Streak 6 | . 1 6 1 2 4 4 To Critical Strikes . | . . . . . . . Average Backups 11 | 2 7 13 14 14 10 7 Power 1 | . 1 1 2 1 1 . Propulsion 2 | 1 1 1 1 5 4 2 Utility 3 | . 1 5 6 2 1 1 Weapon 3 | . 2 3 4 5 2 2 Tool/Special . | . . . . . . . Unused Backups 32 | . 3 5 1 9 3 11 Power 2 | . . . . 2 . . Propulsion 7 | . 2 2 . . 2 1 Utility 9 | . 1 2 . 3 . 3 Weapon 13 | . . 1 1 4 1 6 Tool/Special 1 | . . . . . . 1 Average Slot Usage (%) 87 | . 92 94 94 96 74 75 Engine 5 | . 14 5 . . 7 . Core 4 | . . 4 11 8 1 4 Treads 24 | . 28 31 33 27 15 10 Hover 2 | . . . . . 4 11 Device 6 | . 7 9 . 15 5 . Storage 14 | . 14 12 22 18 14 10 Processor 1 | . . 4 . . . . Hackware 6 | . . . 6 9 6 21 Protection 2 | . . 3 . . 2 6 Ballistic Gun 12 | . 28 16 18 13 6 . Ballistic Cannon 1 | . . . . 1 4 . Launcher 1 | . . . 3 3 2 . Impact Weapon 3 | . . 4 . . 3 9 Peak Build Rating 35 | 6 7 15 17 23 27 35 Average Rating 15 | 4 6 11 15 20 18 20 On Entrance 10 | . 6 7 15 17 21 10 Avg Prop Armor Cover (%) 18 | . . . . . . 18 Naked Turns . | . . . . . . . Heaviest Build 44 | 14 30 38 35 40 44 21 Greatest Support 60 | 40 40 60 60 60 60 60 Greatest Overweight (x) 1 | . . 1 . . 1 1 Average Overweight (x) . | . . . . . . . Largest Inventory Capacity 15 | 8 15 15 15 15 15 10 Average Capacity 12 | 7 8 15 15 15 12 8 Most Carried 15 | 5 8 15 15 15 15 10 Average Carried 11 | 2 7 13 14 14 10 7 Final Capacity 15 | 8 15 15 15 15 8 10 Final Carried 15 | 4 8 15 15 15 7 8 Class Distribution -------------------- 89% | Mutant 7% | Scavenger-Mutant Dominant Class ---------------- Mutant | -10/Materials Mutant | -9/Materials Mutant | -9/Mines Mutant | -8/Materials Mutant | -8/Garrison Scavenger-Mutant | -8/Materials Resources | -11 -10 -9 -9 -8 -8 -8 ----------- Run | Yrd Mat Mat Min Mat Gar Mat Matter Collected 2724 | 225 211 770 76 743 450 249 Remotely . | . . . . . . . Salvage Created 3460 | 22 287 1366 78 908 459 340 Parts 211 | 4 13 89 7 60 22 16 Haulers Intercepted 11 | . 1 5 . 2 . 3 Recyclers Shooed 5 | . 2 1 . 2 . . Parts Field Recycled . | . . . . . . . Retrieved Matter . | . . . . . . . Parts Self-Destructed . | . . . . . . . Prevented . | . . . . . . . Parts Restored . | . . . . . . . Kills | -11 -10 -9 -9 -8 -8 -8 ------- Run | Yrd Mat Mat Min Mat Gar Mat Combat Hostiles Destroyed 79 | . 6 23 4 24 17 5 Melee 7 | . 1 3 . . 1 2 Guns 41 | . 5 18 3 11 4 . Cannons 9 | . . . . 6 3 . AOE 16 | . . . 1 7 6 2 Classes Destroyed 13 | 1 2 6 . 2 2 . Worker 5 | . . 3 . 1 . 1 Tunneler 1 | 1 . . . . . . Hauler 11 | . 1 5 . 2 . 3 Recycler 4 | . . 3 . 1 . . Operator 2 | . . 1 . . . 1 Watcher 1 | . . 1 . . . . Swarmer 17 | . . 6 3 4 4 . Cutter 4 | . . . . . 2 2 Grunt 38 | . 6 10 2 12 7 1 Brawler 4 | . . . . 3 . 1 Duelist 1 | . . . . 1 . . Sentry 15 | . . 7 . 4 3 1 Hunter 1 | . . . . . 1 . Best Kill Streak 6 | 1 2 5 3 5 6 3 Combat Bots Only 6 | . 2 5 3 5 6 3 Max Kills in Single Turn 2 | 1 1 2 2 2 2 1 Gunslinging 1 | . . 1 . . . . Exploded 2 | . . . 1 2 2 1 Melee 1 | . 1 1 . . 1 1 Uniques/NPCs Destroyed . | . . . . . . . Combat | -11 -10 -9 -9 -8 -8 -8 -------- Run | Yrd Mat Mat Min Mat Gar Mat Hostile Shots Fired 515 | . 55 173 13 69 146 59 Missed 134 | . 10 45 4 24 38 13 Hits 381 | . 45 128 9 45 108 46 Melee 19 | . . . . 6 8 5 Projectile 362 | . 45 128 9 39 100 41 AOE 3 | . . . . . 1 2 Critical Strikes 20 | . 1 5 . 4 5 5 Damage Taken 5543 | . 536 1686 104 709 1500 1008 Core 993 | . 127 290 14 115 246 201 Absorbed by Shields 466 | . . 108 . 188 170 . Regen/Repaired (Parts) 127 | . . 127 . . . . Core Remaining (%) 57 | 100 49 . 24 . . . Volleys Fired 247 | 1 30 100 9 56 48 3 Largest 2 | 2 2 2 2 2 2 1 Hottest 92 | 40 40 43 60 60 92 36 Shots Fired 397 | 2 60 132 12 112 76 3 Gun 308 | 2 60 132 6 71 37 . Cannon 42 | . . . . 25 17 . Launcher 47 | . . . 6 16 22 3 Special . | . . . . . . . Kinetic 334 | 2 60 132 6 96 38 . Thermal 2 | . . . . . 2 . Explosive 47 | . . . 6 16 22 3 Electromagnetic 14 | . . . . . 14 . Robot Hit Streak 16 | 1 13 16 7 8 13 1 Robot Miss Streak 5 | . 2 3 2 5 5 2 Penetration Max . | . . . . . . . Secondary Targets 1 | . . 1 . . . . Max Gunslinging Chain 1 | . . 1 . . . . Shots Hit Robots 333 | 1 47 128 8 70 63 16 Core Hits 174 | 1 14 48 11 66 29 5 Critical Kills 1 | . . 1 . . . . Critical Parts Destroyed 10 | . 1 3 . . 3 3 Critical Strikes 12 | . 1 4 . 1 3 3 Destroy 1 | . 1 . . . . . Blast 1 | . . . . 1 . . Smash 10 | . . 4 . . 3 3 Melee Attacks 69 | . . 31 2 . 18 18 Impact 64 | . . 31 . . 17 16 Slashing . | . . . . . . . Piercing . | . . . . . . . Sneak Attacks 13 | . . 5 2 . 2 4 Combat Hostiles . | . . . . . . . Follow-up Attacks . | . . . . . . . Damage Inflicted 8135 | 11 607 2449 404 2101 1751 812 Guns 3394 | 11 587 1451 97 839 409 . Cannons 804 | . . . . 502 302 . Explosions 1760 | . . . 284 760 582 134 Melee 2115 | . . 980 . . 457 678 Ramming 62 | . 20 18 23 . 1 . Kinetic 4018 | 11 587 1451 97 1341 531 . Thermal 32 | . . . . . 32 . Explosive 1760 | . . . 284 760 582 134 Electromagnetic 148 | . . . . . 148 . Impact 2115 | . . 980 . . 457 678 Slashing . | . . . . . . . Piercing . | . . . . . . . Highest Corruption 13 | . . . . 5 5 13 Average Corruption 10 | . . . . 5 4 13 Corruption Purged 5 | . . . . . 5 . Corruption Blocked . | . . . . . . . Effects 36 | . . . . 3 4 29 Message Errors 11 | . . . . . 1 10 Matter Fused 6 | . . . . . 2 4 Heat Flow Errors 3 | . . . . 1 . 2 Energy Discharges 8 | . . . . 2 1 5 Parts Fused 1 | . . . . . . 1 Data Loss (minor) 4 | . . . . . . 4 Data Loss (major) 1 | . . . . . . 1 Misdirections 2 | . . . . . . 2 Overload Shots . | . . . . . . . Overflow Damage 857 | . . 243 . 13 291 310 Projectiles . | . . . . . . . Explosions 54 | . . . . 13 38 3 Melee 803 | . . 243 . . 253 307 Knockbacks 17 | . . 4 . 5 8 . Impact 6 | . . 4 . . 2 . Kinetic 11 | . . . . 5 6 . Secondary . | . . . . . . . Self-Inflicted Damage 215 | . . . 29 . 83 103 Shots 9 | . . . 1 . 5 3 Rammed 12 | . 5 4 2 . 1 . Targets Rammed 14 | . 6 5 2 . 1 . Kicked . | . . . . . . . Crushed 2 | . 1 1 . . . . Highest Temperature 247 | . 23 6 15 227 128 247 Average Temperature 49 | . 13 6 10 47 39 112 Received Heat Transfer 2104 | . 315 764 18 230 615 162 Siege Activations . | . . . . . . . Martial Activations . | . . . . . . . Shielding Activations . | . . . . . . . Robots Disrupted 1 | . . . . . 1 . Combat Hostiles 1 | . . . . . 1 . Robots Corrupted 11 | . . 4 . . 3 4 Combat Hostiles 6 | . . 2 . . 3 1 Parts Fried 17 | . . 5 . . 7 5 Impact Corruptions 31 | . . 10 . . 9 12 Robots Melted . | . . . . . . . Combat Hostiles . | . . . . . . . Parts Melted . | . . . . . . . Heat Transferred 74 | . . . . . 74 . Parts Sabotaged . | . . . . . . . Parts Stolen . | . . . . . . . Parts Stripped . | . . . . . . . Power Chain Reactions . | . . . . . . . Alert | -11 -10 -9 -9 -8 -8 -8 ------- Run | Yrd Mat Mat Min Mat Gar Mat Maximum Alert Level 3 | . . . . 1 3 1 Low Security (%) 68 | 100 100 100 100 58 26 34 Level 1 18 | . . . . 41 19 65 Level 2 7 | . . . . . 29 . Level 3 6 | . . . . . 25 . Level 4 . | . . . . . . . Level 5 . | . . . . . . . High Security . | . . . . . . . Max Security . | . . . . . . . Peak Influence 713 | 5 87 178 91 301 713 347 Initial 347 | . . 28 31 18 187 347 Average 180 | . 17 84 23 171 417 232 Influence Increases 2901 | 5 202 711 214 727 666 376 Destroy 0b10 Robot/C 1680 | . 120 460 140 520 340 100 Destroy 0b10 Robot/NC 120 | 5 5 65 . 20 . 25 Destroy Leader 374 | . 32 152 30 104 20 36 Allied During Kill 19 | . . . 13 6 . . Successful Hack 2 | . . 2 . . . . Anti-Garrison Action 150 | . . . . . 150 . Destroy Structure 181 | . . 2 16 32 111 20 Partial Spotted 90 | . . . . . . 90 Lose Combat Pursuer 285 | . 45 30 15 45 45 105 Influence Decreases 2620 | 5 133 700 247 485 242 808 Entered New Map 587 | . . 41 49 29 102 366 Time Decay 1638 | 5 123 564 188 396 . 362 Lost Part 350 | . 10 90 10 20 140 80 Lost Ally 40 | . . . . 40 . . Purge Threat 5 | . . 5 . . . . Squads Dispatched 11 | . 2 2 1 4 . 2 Investigation 3 | . 1 1 1 . . . Extermination . | . . . . . . . Reinforcement 6 | . 1 1 . 2 . 2 Assault . | . . . . . . . Garrison 2 | . . . . 2 . . Intercept . | . . . . . . . Searches Triggered . | . . . . . . . Construction Impeded 1 | . . . . 1 . . Haulers Reinforced . | . . . . . . . Active Scanning Responses . | . . . . . . . Cargo Convoy Interrupts . | . . . . . . . Stealth | -11 -10 -9 -9 -8 -8 -8 --------- Run | Yrd Mat Mat Min Mat Gar Mat Distress Signals 8 | . 1 1 . 4 . 2 Communications Jammed . | . . . . . . . Distress Signals . | . . . . . . . Times Spotted 131 | . 16 35 8 38 17 17 Peak Tracking Total 8 | . 4 5 3 7 7 8 Tactical Retreats 12 | . 2 2 1 3 1 3 Traps | -11 -10 -9 -9 -8 -8 -8 ------- Run | Yrd Mat Mat Min Mat Gar Mat Traps Triggered 5 | . 1 1 . . 3 . Indirectly . | . . . . . . . Trap Hack Attempts . | . . . . . . . Triggered . | . . . . . . . Disarmed . | . . . . . . . Reprogrammed . | . . . . . . . Reused . | . . . . . . . Traps Extracted . | . . . . . . . Installed . | . . . . . . . Triggered . | . . . . . . . Machines | -11 -10 -9 -9 -8 -8 -8 ---------- Run | Yrd Mat Mat Min Mat Gar Mat Machines Disabled 1 | . . . . . 1 . Max in Single Turn 1 | . . . . . 1 . Garrison Relay 1 | . . . . . 1 . Machines Repaired . | . . . . . . . Machines Dismantled . | . . . . . . . Machines Sabotaged . | . . . . . . . Overloaded Fab Kills . | . . . . . . . Hacking | -11 -10 -9 -9 -8 -8 -8 --------- Run | Yrd Mat Mat Min Mat Gar Mat Machines Accessed 16 | . 3 4 1 2 1 5 Terminals 11 | . 3 2 . 1 1 4 Fabricators . | . . . . . . . Repair Stations 1 | . . 1 . . . . Recycling Units . | . . . . . . . Scanalyzers 2 | . . 1 . . . 1 Garrison Access 1 | . . . . 1 . . Total Hacks 20 | . 3 7 1 3 1 5 Successful 10 | . 1 6 1 1 . 1 Failed 9 | . 2 . . 2 1 4 Catastrophic 4 | . 2 . . . . 2 Database Lockouts 1 | . . 1 . . . . Manual 9 | . 3 1 . 1 . 4 Terminals 13 | . 3 3 . 2 1 4 Fabricators . | . . . . . . . Repair Stations 2 | . . 2 . . . . Recycling Units . | . . . . . . . Scanalyzers 3 | . . 2 . . . 1 Garrison Access 1 | . . . . 1 . . Terminal Hacks 5 | . 1 3 1 . . . Record 1 | . . 1 . . . . Robot Analysis 1 | . 1 . . . . . Open Door 1 | . . . 1 . . . Alert Level 1 | . . 1 . . . . Unreport Threat 1 | . . 1 . . . . Fabricator Hacks . | . . . . . . . Repair Station Hacks 2 | . . 2 . . . . Scan Component 1 | . . 1 . . . . Repair 1 | . . 1 . . . . Recycling Unit Hacks . | . . . . . . . Scanalyzer 2 | . . 1 . . . 1 Retrieve Study 2 | . . 1 . . . 1 Garrison Access Hacks 1 | . . . . 1 . . Unlock Access 1 | . . . . 1 . . Unauthorized Hacks . | . . . . . . . Terminals . | . . . . . . . Fabricators . | . . . . . . . Repair Stations . | . . . . . . . Recycling Units . | . . . . . . . Scanalyzers . | . . . . . . . Garrison Access . | . . . . . . . Data Cores Recovered . | . . . . . . . Used . | . . . . . . . Hacking Detections 9 | . 1 3 . 2 1 2 Full Trace Events . | . . . . . . . Feedback Events . | . . . . . . . Feedback Blocked . | . . . . . . . Robot Schematics Acquired . | . . . . . . . Robots Built . | . . . . . . . Authchips . | . . . . . . . Time . | . . . . . . . Total Robot Build Rating . | . . . . . . . Part Schematics Acquired . | . . . . . . . Parts Built . | . . . . . . . Authchips . | . . . . . . . Time . | . . . . . . . Total Part Build Rating . | . . . . . . . Part Studies Acquired 1 | . . 1 . . . . Parts Repaired 1 | . . 1 . . . . Time 26 | . . 26 . . . . Parts Recycled . | . . . . . . . Recycled Matter . | . . . . . . . Retrieved Matter . | . . . . . . . Retrieved Components . | . . . . . . . Parts Scanalyzed . | . . . . . . . Part Schematics Acquired . | . . . . . . . Parts Damaged . | . . . . . . . Bothacking | -11 -10 -9 -9 -8 -8 -8 ------------ Run | Yrd Mat Mat Min Mat Gar Mat Used RIF Installer 1 | . . . . . 1 . Robots Hacked 2 | . . . 2 . . . Non-combat . | . . . . . . . Combat 2 | . . . 2 . . . Robot Hacks Applied 2 | . . . 2 . . . parse_system 2 | . . . 2 . . . Relay Couplers Released 5 | . . . . . 5 . Machine Destruction 5 | . . . . . 5 . Attached 2 | . . . . . . 2 Fabnet Peak Effective % . | . . . . . . . Robots Rewired . | . . . . . . . Allies Hacked . | . . . . . . . Hacks Repelled . | . . . . . . . Allies | -11 -10 -9 -9 -8 -8 -8 -------- Run | Yrd Mat Mat Min Mat Gar Mat Total Allies 3 | . . . 3 . . . Largest Group 3 | . . . 3 2 . . Highest-Rated Group 40 | . . . 40 32 . . Highest-Rated Ally 16 | . . . 16 16 . . Total Orders . | . . . . . . . Ally Attacks 13 | . . . 9 4 . . Total Damage 141 | . . . 99 42 . . Kills 5 | . . . 3 2 . . Allies Corrupted . | . . . . . . . Allies Melted . | . . . . . . . Intel | -11 -10 -9 -9 -8 -8 -8 ------- Run | Yrd Mat Mat Min Mat Gar Mat Active Infowar (turns) 2509 | . 394 1258 . 857 . . Sensors 1147 | . . 1147 . . . . Seismic 1362 | . 394 111 . 857 . . Robot Analysis Total 1 | . 1 . . . . . Derelict Logs Recovered . | . . . . . . . Drone Launches . | . . . . . . . Drone Recoveries . | . . . . . . . Exploration | -11 -10 -9 -9 -8 -8 -8 ------------- Run | Yrd Mat Mat Min Mat Gar Mat Turns Passed 7267 | 86 771 1957 797 1051 1773 832 Spaces Moved 3772 | 53 398 876 401 497 624 923 Core 15 | 15 . . . . . . Treads 2820 | 38 398 876 401 497 468 142 Legs . | . . . . . . . Wheels . | . . . . . . . Hover 937 | . . . . . 156 781 Flight . | . . . . . . . Fastest Speed 42 | 50 160 160 160 160 52 42 Average Speed 137 | 128 160 160 160 160 165 64 Slowest Speed 240 | 160 160 240 160 160 240 240 Overloaded Moves . | . . . . . . . Propulsion Burnouts . | . . . . . . . Robots Hopped . | . . . . . . . Potential Cave-ins 2 | . . . 2 . . . Cave-ins Triggered . | . . . . . . . Exploration Rate (%) 49 | 5 54 67 63 37 57 62 Regions Visited 6 Branch Regions 1 Pre-discovered Areas 1 | . . . 1 . . . Known Exits Taken 1 | . . . . 1 . . Unknown Exits Taken 4 | 1 1 1 1 . . . Scrap Searched 1 | . . . 1 . . . Spaces Dug 3 | . . 1 . . 2 . Terrain Destroyed 206 | . . 1 24 40 115 26 Melee 3 | . . 1 . . 2 . Projectile 1 | . . . . 1 . . AOE 202 | . . . 24 39 113 26 Terrain Rammed . | . . . . . . . Walls Destroyed . | . . . . . . . Machines Disabled . | . . . . . . . Actions | -11 -10 -9 -9 -8 -8 -8 --------- Run | Yrd Mat Mat Min Mat Gar Mat Total 5353 | 69 472 1228 540 652 1259 1133 Wait 964 | . 15 156 115 49 513 116 Move 3765 | 52 397 875 400 496 622 923 Hop . | . . . . . . . Pick Up 115 | 10 13 28 3 21 10 30 Fast Attach . | . . . . . . . Attach 56 | 6 2 12 1 5 16 14 Detach 3 | . . . . . 2 1 Swap 48 | . 2 13 6 7 11 9 Drop 59 | . 7 8 2 18 5 19 Fire 247 | 1 30 100 9 56 48 3 Melee 69 | . . 31 2 . 18 18 Ram . | . . . . . . . Kick . | . . . . . . . Crush 14 | . 6 5 2 . 1 . Escape Stasis 13 | . . . . . 13 . Rewire . | . . . . . . . Trap . | . . . . . . . Miscellaneous . | . . . . . . . Route ------- -11/Scrapyard -10/Materials (discovered 2 exits: *Mat / [*Min]) -9/Materials (discovered 4 exits: *Mat x2 / *Min / [*Sto]) -9/Mines -8/Materials -8/Garrison (discovered 3 exits: *Mat x3) -8/Materials (discovered 2 exits: [*Fac x2]) History --------- Turn | Location | Event 9 | -11/Scrapyard | Discovered new exit (range 16) 87 | -11/Scrapyard | Entered Materials 315 | -10/Materials | Build established: Mutant 332 | -10/Materials | Discovered new exit (range 11) 735 | -10/Materials | Core integrity fell below 50% 783 | -10/Materials | Discovered new exit (range 6) 787 | -10/Materials | Derelicts attacked the area 858 | -10/Materials | Entered another Materials area 858 | -9/Materials | Evolved 2 slots: Propulsion x1, Utility x1 1003 | -9/Materials | Discovered new exit (range 16) 1040 | -9/Materials | Central database locked down 1403 | -9/Materials | Repaired Lgt. Treads 1554 | -9/Materials | Discovered new exit (range 3) 2065 | -9/Materials | Core integrity fell below 50% 2153 | -9/Materials | Lost 6 parts (4n1u1w) 2236 | -9/Materials | Discovered new exit (range 16) 2648 | -9/Materials | Discovered new exit (range 13) 2815 | -9/Materials | Entered Mines 2894 | -9/Mines | Assisted by bots powering up and referring to "LRC-V3" 2907 | -9/Mines | Discovered new exit (range 13) 2924 | -9/Mines | Learned location of Storage (-9) 3440 | -9/Mines | Met a Derelict shopkeep closing up shop 3612 | -9/Mines | Entered Materials 3612 | -8/Materials | Accompanied by 2 allies 3612 | -8/Materials | Evolved 2 slots: Utility x2 4485 | -8/Materials | Garrison activated, responded to threat 4634 | -8/Materials | Identified exit to Garrison 4663 | -8/Materials | Entered Garrison 5105 | -8/Garrison | Triggered checkpoint 5521 | -8/Garrison | Triggered checkpoint 5563 | -8/Garrison | Triggered checkpoint 5616 | -8/Garrison | Discovered new exit (range 14) 5673 | -8/Garrison | Triggered checkpoint 5723 | -8/Garrison | Garrison Relay disabled 5739 | -8/Garrison | Lost 4 parts (2n2w) 5906 | -8/Garrison | Discovered new exit (range 4) 5935 | -8/Garrison | Triggered checkpoint 5935 | -8/Garrison | Triggered checkpoint 5958 | -8/Garrison | Core integrity fell below 50% 6012 | -8/Garrison | Lost 4 parts (2n1u1w) 6047 | -8/Garrison | Triggered checkpoint 6157 | -8/Garrison | Discovered new exit (range 9) 6322 | -8/Garrison | Installed Relay Interface Framework 6436 | -8/Garrison | Entered Materials 6544 | -8/Materials | System corruption reached 10% 6572 | -8/Materials | Lost 3 parts (1n1u1w) 6588 | -8/Materials | Met 7R-MNS 6805 | -8/Materials | Build established: Scavenger-Mutant 7096 | -8/Materials | Discovered new exit (range 5) 7256 | -8/Materials | Discovered new exit (range 5) 7257 | -8/Materials | Core integrity fell below 20% 7268 | -8/Materials | Destroyed by H-55 Commando with Gauss Rifle Last Messages --------------- reinforcements to Terminal M010. O-16 Technician locks terminal. Destroyed Hacking Suite. Destroyed Hover Unit. Destroyed Datajack. O-16 Technician system corrupted by crushing effect. O-16 Technician destroyed. Knocked back. EXIT=FOUND C-17 Slicer destroyed. Aerolev Unit destroyed. Hacking Suite destroyed. Destroyed Hacking Suite. Penetrated by Slug. Aerolev Unit destroyed. Lgt. Nuclear Core destroyed. Slug penetrates Wall. C-17 Slicer destroyed. Penetrated by Slug. Map ----- +----------------------------------------------------+ | ?# #???????????????????????????????????? | | ?### ###???????????????????????????????????? | | ???# #?#############+#### #??????????????? | | ???# ### # #??????????????? | | ???# + # #??????????????? | | ???# # + """ +??????????????? | | ???# # # "R ##+##???????????????? | | ???# + # """ #???????????????????? | | ???# ### # "" #???????????????????? | | ???# #?########H ?+???????????????????? | | ???# #????????# ?????????????????????? | | ???# #????????# """ #???????????????????? | | ???# #????????# """ #???????????????????? | | ???# #????""??#! """ #???????????????????? | | ???# #??""""??# ? "???????????????????? | | ???# # """""?+ a T???????????????????? | | ???# + """""?# """ "???????????????????? | | ???# # """ # """ ##??????????????????? | | ???# #?? #h """ ???????????????????? | | ???# #???? # ???????????????????? | | ???# #??????### ????????????????????? | | ???# #???????# < #????????????????????? | | ???# #??????## #????????????????????? | | ???# ######?# #????????????????????? | | ???# ## ### %= ### #??????????????? | | ???# / /@ #??????????????? | | ???#### ###= % ###+#???????????????? | | ??????#####?# ?????????????????? | | ??????????# # ! ??????????????? | | ??????????# [[ # ????????????? | | ??????????# [[ ?? ??????????? | | ??????????# [ ?? ??????????? | | ??????????##########???##########??????????? | | | | | | | | | | | | | | | | | | | | | | | | | | | | | | | | | | | +----------------------------------------------------+ Best States ------------- Heat Dissipation 41 Energy Generation 14 Energy Capacity 275 Matter Stores 500 Matter Capacity 500 Sight Range 16 Robot Scan Range 14 Terrain Scan Density 10 Armor Coverage 300 Evasion (%) 56 Targeting Accuracy 5 Recoil Reduction 3 Offensive Hacking 20 Relay Coupler Types 2 Relay Coupler Value 48 Item Schematics ----------------- None Robot Schematics ------------------ None Fabricated ------------ Nothing Repaired ---------- Lgt. Treads | 9% | -9/Materials Studied --------- Datajack | -9/Materials | Hacked Alien Tech Used ----------------- None Achievements -------------- A Problem For Future Me Join The Dark Side Part-time Mechanic Challenges ------------ None Game ------ Seed BottomlessRemoteInterface Manual? 0 Play Time 00:55:46 Cumulative 14.1 hours Start 2026.01.10 @ 16:01:24 End 2026.01.11 @ 14:03:31 Sessions 3 Manual Loads 0 Difficulty Rogue Special Mode None Game No. 24 Rogue 24 Adventurer 0 Explorer 0 Win Type - Total 0 Types 0/0/0/0/0/0/0/0/0/0 Lore% 4 Gallery% 18 Achievement% 14 Wizard Run 0 Options --------- Layout 1 ASCII 0 Keyboard 0 Movement Numpad Keybinds 0 Fullscreen 1 Font 24/Smallcaps Map View 50x35 Zoom Use 0% Tactical HUD 0 Map Filters NONE Filters NONE Steam 1 RUN: 8d8b6e79-1024-403e-9380-2a5f5d225c49